bitfinex/quotes_SOLUSD_20241225
["timestamp","ask_amount","ask_price","bid_price","bid_amount"]
[1735108123945,15.16140957,199.1,199.03,15.16140957]
[1735108124145,15.16140957,199.11,199.04,15.16140957]
[1735108124457,22.9702,199.19,199.06,38.93829357]
[1735108124458,15.16140957,199.13,199.06,38.93829357]
[1735108124644,15.16140957,199.14,199.06,38.93829357]
[1735108124845,15.16140957,199.14,199.07,15.16140957]
[1735108125053,15.16140957,199.14,199.08,1.5512]
[1735108125368,15.16140957,199.15,199.08,16.71260957]
[1735108125571,15.16140957,199.17,199.1,21.74330957]
[1735108125741,15.16140957,199.18,199.11,38.93829357]
[1735108127066,15.16140957,199.19,199.11,38.93829357]
[1735108128058,15.16140957,199.18,199.11,38.93829357]
[1735108129863,15.16140957,199.18,199.11,23.776884]
[1735108132269,15.16140957,199.17,199.11,23.776884]
[1735108134174,15.16140957,199.15,199.1,6.5819]
[1735108134370,15.16140957,199.14,199.1,6.5819]
[1735108136086,15.16140957,199.2,199.06,6.5702]
[1735108136087,15.16140957,199.11,199.06,6.5702]
[1735108136249,15.16140957,199.1,199.06,6.5702]
[1735108136451,15.16140957,199.11,199.06,6.5702]
[1735108136847,15.16140957,199.12,199.06,6.5702]
[1735108137047,15.16140957,199.13,199.06,6.5702]
[1735108137273,15.16140957,199.13,199.06,21.73160957]
[1735108137466,15.16140957,199.14,199.07,38.93829357]
[1735108137686,15.16140957,199.15,199.08,15.16140957]
[1735108137864,15.16140957,199.16,199.1,1.5928]
[1735108138077,15.16140957,199.17,199.11,23.776884]
[1735108138754,15.16140957,199.16,199.11,23.776884]
[1735108138958,15.16140957,199.17,199.11,23.776884]
[1735108139383,15.16140957,199.16,199.11,23.776884]
[1735108140079,15.16140957,199.14,199.1,1.5928]
[1735108140458,15.16140957,199.13,199.1,1.5928]
[1735108141684,15.16140957,199.14,199.1,1.5928]
[1735108142852,20.0,199.2,199.11,23.776884]
[1735108143380,15.16140957,199.18,199.11,23.776884]
[1735108145354,15.16140957,199.19,199.13,23.776884]
[1735108145661,15.16140957,199.2,199.13,23.776884]
[1735108145983,15.16140957,199.22,199.16,23.776884]
[1735108146681,15.16140957,199.22,199.15,23.776884]
[1735108147163,15.16140957,199.22,199.15,38.93829357]
[1735108147351,15.16140957,199.22,199.16,0.12549]
[1735108147556,15.16140957,199.23,199.18,23.776884]
[1735108147763,15.16140957,199.23,199.19,1.5336]
[1735108148155,15.16140957,199.23,199.2,23.776884]
[1735108150180,15.16140957,199.24,199.2,23.776884]
[1735108151071,15.16140957,199.27,199.22,23.776884]
[1735108151274,15.16140957,199.28,199.22,23.776884]
[1735108151481,15.16140957,199.27,199.22,23.776884]
[1735108152179,7.5261,199.31,199.22,23.776884]
[1735108152180,15.16140957,199.25,199.22,23.776884]
[1735108152563,15.16140957,199.25,199.21,6.549]
[1735108152768,15.16140957,199.22,199.21,6.549]
[1735108153168,15.16140957,199.22,199.19,1.5336]
[1735108155084,15.16140957,199.2,199.17,6.549]
[1735108155454,15.16140957,199.19,199.17,6.549]
[1735108155882,15.16140957,199.18,199.14,1.5955]
[1735108156066,15.16140957,199.17,199.14,1.5955]
[1735108156386,15.16140957,199.16,199.12,6.549]
[1735108159985,15.16140957,199.17,199.12,6.549]
[1735108161688,15.16140957,199.18,199.12,6.549]
[1735108162270,15.16140957,199.14,199.09,1.5955]
[1735108162473,15.16140957,199.13,199.09,1.5955]
[1735108165199,15.0579,199.23,199.09,1.5955]
[1735108165390,15.16140957,199.14,199.09,1.5955]
[1735108165575,15.16140957,199.16,199.09,16.75690957]
[1735108165984,15.16140957,199.18,199.12,15.16140957]
[1735108166289,15.16140957,199.2,199.14,21.34210957]
[1735108166591,15.16140957,199.21,199.14,21.34210957]
[1735108167199,15.16140957,199.21,199.15,23.776884]
[1735108168472,15.16140957,199.23,199.16,1.5035]
[1735108168671,15.16140957,199.24,199.17,38.93829357]
[1735108171293,15.16140957,199.23,199.17,23.776884]
[1735108175696,15.16140957,199.22,199.17,23.776884]
[1735108176602,15.16140957,199.21,199.17,23.776884]
[1735108184208,9.69180971,199.22,199.17,23.776884]
[1735108185005,7.5278,199.26,199.17,23.776884]
[1735108185208,9.69180971,199.22,199.17,23.776884]
[1735108185391,9.69180971,199.21,199.17,23.776884]
[1735108194192,7.5252,199.33,199.2,9.81729971]
[1735108194396,9.69180971,199.31,199.24,9.69180971]
[1735108194611,9.69180971,199.31,199.25,23.776884]
[1735108196719,20.0,199.34,199.25,23.776884]
[1735108196903,9.69180971,199.31,199.25,23.776884]
[1735108197414,9.69180971,199.29,199.25,23.776884]
[1735108197615,9.69180971,199.28,199.25,23.776884]
[1735108198014,9.69180971,199.29,199.25,23.776884]
[1735108200312,9.69180971,199.3,199.25,23.776884]
[1735108201823,7.5255,199.33,199.25,23.776884]
[1735108202027,9.69180971,199.26,199.19,7.9908]
[1735108202325,9.69180971,199.22,199.19,7.9908]
[1735108203604,9.69180971,199.22,199.2,23.776884]
[1735108204005,9.69180971,199.21,199.19,6.3264]
[1735108204232,9.69180971,199.2,199.14,7.5275]
[1735108204427,9.69180971,199.19,199.14,7.5275]
[1735108204725,9.69180971,199.2,199.14,7.5275]
[1735108205029,9.69180971,199.21,199.14,17.21930971]
[1735108205429,9.69180971,199.2,199.14,7.5275]
[1735108206128,9.69180971,199.2,199.15,23.776884]
[1735108207428,9.69180971,199.22,199.15,23.776884]
[1735108207619,9.69180971,199.23,199.16,9.69180971]
[1735108207929,9.69180971,199.24,199.17,23.776884]
[1735108208337,9.69180971,199.22,199.17,23.776884]
[1735108208515,9.69180971,199.22,199.16,23.776884]
[1735108209635,20.0,199.26,199.18,9.69180971]
[1735108209835,20.0,199.26,199.17,0.87845723]
[1735108209836,20.0,199.26,199.21,23.776884]
[1735108210438,7.5263,199.31,199.23,25.393984]
[1735108210739,17.21810971,199.31,199.23,35.08579371]
[1735108211034,9.69180971,199.31,199.23,35.83846723]
[1735108211248,18.97377036,199.4,199.28,9.69180971]
[1735108211536,9.69180971,199.37,199.31,23.776884]
[1735108211716,9.69180971,199.36,199.31,23.776884]
[1735108212134,9.69180971,199.33,199.28,23.776884]
[1735108212347,9.69180971,199.31,199.28,23.776884]
[1735108213217,7.5245,199.35,199.28,23.776884]
[1735108213416,9.69180971,199.33,199.28,23.776884]
[1735108213618,9.69180971,199.35,199.29,23.776884]
[1735108213836,29.69180971,199.36,199.29,23.776884]
[1735108214318,9.69180971,199.36,199.29,23.776884]
[1735108214520,9.69180971,199.35,199.29,23.776884]
[1735108214719,9.69180971,199.33,199.29,23.776884]
[1735108214919,9.69180971,199.32,199.29,23.776884]
[1735108215252,9.69180971,199.33,199.29,23.776884]
[1735108216142,15.12793363,199.33,199.29,23.776884]
[1735108217369,15.12793363,199.32,199.29,23.776884]
[1735108217651,15.12793363,199.3,199.23,16.74503363]
[1735108217859,15.12793363,199.32,199.24,15.12793363]
[1735108218228,15.12793363,199.34,199.26,15.12793363]
[1735108218429,15.12793363,199.35,199.28,15.12793363]
[1735108218845,15.12793363,199.36,199.28,15.12793363]
[1735108219040,15.12793363,199.36,199.29,23.776884]
[1735108219357,15.12793363,199.36,199.29,24.52936168]
[1735108219852,15.12793363,199.34,199.31,23.776884]
[1735108220139,15.12793363,199.32,199.26,23.776884]
[1735108220354,15.12793363,199.3,199.26,23.776884]
[1735108220860,20.0,199.36,199.25,8.005]
[1735108221016,15.12793363,199.29,199.25,8.005]
[1735108221861,15.12793363,199.29,199.26,23.776884]
[1735108223622,15.12793363,199.3,199.26,23.776884]
[1735108223840,15.12793363,199.31,199.26,23.776884]
[1735108224433,15.12793363,199.32,199.26,23.776884]
[1735108224633,15.12793363,199.33,199.26,39.65738957]
[1735108225374,15.12793363,199.34,199.26,39.65738957]
[1735108226264,15.12793363,199.36,199.29,15.12793363]
[1735108226469,15.12793363,199.36,199.3,23.776884]
[1735108226637,15.12793363,199.35,199.3,23.776884]
[1735108227431,7.5221,199.41,199.25,23.13293363]
[1735108227432,15.12793363,199.32,199.25,23.13293363]
[1735108227739,15.12793363,199.3,199.25,8.005]
[1735108228365,22.5664,199.41,199.26,15.12793363]
[1735108228366,15.12793363,199.33,199.26,15.12793363]
[1735108228575,15.12793363,199.34,199.27,15.88046283]
[1735108229172,15.12793363,199.34,199.28,23.776884]
[1735108231354,15.12793363,199.33,199.28,23.776884]
[1735108231657,15.12793363,199.34,199.28,23.776884]
[1735108231867,15.12793363,199.35,199.3,23.776884]
[1735108232180,15.12793363,199.36,199.3,23.776884]
[1735108232773,15.12793363,199.35,199.3,23.776884]
[1735108233072,15.12793363,199.33,199.3,23.776884]
[1735108233234,15.12793363,199.31,199.3,23.776884]
[1735108233434,15.12793363,199.31,199.25,8.005]
[1735108233669,15.12793363,199.3,199.25,8.005]
[1735108234643,20.0,199.36,199.25,8.75765609]
[1735108234860,15.12793363,199.34,199.27,15.12793363]
[1735108235641,15.12793363,199.34,199.28,23.776884]
[1735108236071,15.12793363,199.35,199.28,38.90481763]
[1735108236272,9.67928491,199.35,199.28,33.45616891]
[1735108237285,9.67928491,199.34,199.28,23.776884]
[1735108238081,9.67928491,199.32,199.27,23.776884]
[1735108238376,15.12851593,199.32,199.26,23.776884]
[1735108238860,15.12851593,199.31,199.26,23.776884]
[1735108239061,15.12851593,199.28,199.25,8.005]
[1735108239472,15.12851593,199.29,199.25,8.005]
[1735108239978,15.12851593,199.3,199.25,8.005]
[1735108240366,15.12851593,199.3,199.26,23.776884]
[1735108243178,15.12851593,199.29,199.25,8.005]
[1735108249725,15.12851593,199.3,199.25,8.005]
[1735108250432,15.12851593,199.31,199.25,8.005]
[1735108250594,15.12851593,199.33,199.26,38.90539993]
[1735108250794,15.12851593,199.34,199.28,23.776884]
[1735108251121,15.12851593,199.35,199.28,38.90539993]
[1735108251302,15.12851593,199.36,199.3,23.776884]
[1735108251806,15.12851593,199.34,199.3,23.776884]
[1735108252012,15.12851593,199.33,199.3,23.776884]
[1735108252835,15.12851593,199.33,199.26,23.776884]
[1735108253630,15.12851593,199.34,199.26,39.65796013]
[1735108253941,15.12851593,199.34,199.27,15.12851593]
[1735108254143,27.5232,199.39,199.29,23.776884]
[1735108254144,15.12851593,199.35,199.29,23.776884]
[1735108254504,15.12851593,199.35,199.27,15.12851593]
[1735108254836,15.12851593,199.33,199.26,38.90539993]
[1735108255134,15.12851593,199.34,199.28,23.776884]
[1735108255342,15.12851593,199.35,199.28,23.776884]
[1735108258015,15.12851593,199.34,199.28,23.776884]
[1735108258331,9.68089153,199.33,199.27,23.776884]
[1735108258636,9.68089153,199.32,199.26,23.776884]
[1735108258814,9.68089153,199.31,199.25,8.005]
[1735108259710,9.68089153,199.32,199.25,8.005]
[1735108260131,9.68089153,199.32,199.26,23.776884]
[1735108261418,9.68089153,199.33,199.26,23.776884]
[1735108261738,9.68089153,199.33,199.26,33.45777553]
[1735108262337,9.68089153,199.33,199.26,23.776884]
[1735108262648,9.68089153,199.31,199.26,23.776884]
[1735108263330,9.68089153,199.29,199.25,8.005]
[1735108263638,9.68089153,199.26,199.2,7.9418]
[1735108263832,9.68089153,199.27,199.2,7.9418]
[1735108264923,9.68089153,199.27,199.21,23.776884]
[1735108266137,9.68089153,199.26,199.21,23.776884]
[1735108266928,9.68089153,199.25,199.21,23.776884]
[1735108269340,9.68089153,199.28,199.21,33.45777553]
[1735108269642,9.68089153,199.27,199.21,23.776884]
[1735108270646,9.68089153,199.26,199.21,23.776884]
[1735108271845,9.68089153,199.27,199.21,23.776884]
[1735108273049,9.68089153,199.28,199.21,33.45777553]
[1735108274926,9.68089153,199.27,199.21,23.776884]
[1735108276942,7.5249,199.34,199.23,33.45777553]
[1735108277141,24.80818642,199.39,199.23,33.45777553]
[1735108277142,21.654,199.39,199.28,23.776884]
[1735108277343,9.68089153,199.35,199.28,33.45777553]
[1735108278673,9.68089153,199.36,199.29,9.68089153]
[1735108278963,9.68089153,199.36,199.3,23.776884]
[1735108279259,9.68089153,199.36,199.29,23.776884]
[1735108279460,9.68089153,199.35,199.29,23.776884]
[1735108279761,9.68089153,199.34,199.28,23.776884]
[1735108280763,9.68089153,199.35,199.28,23.776884]
[1735108283372,9.68089153,199.34,199.28,23.776884]
[1735108283871,9.68089153,199.33,199.28,23.776884]
[1735108284960,9.68089153,199.34,199.28,23.776884]
[1735108285167,7.5238,199.37,199.28,23.776884]
[1735108285355,9.68089153,199.35,199.28,23.776884]
[1735108285551,9.68089153,199.36,199.28,33.45777553]
[1735108285756,9.68089153,199.36,199.29,0.75244901]
[1735108286067,9.68089153,199.36,199.28,34.21022454]
[1735108287174,9.68089153,199.35,199.28,24.52933301]
[1735108289067,9.68089153,199.35,199.28,23.776884]
[1735108290065,9.68089153,199.34,199.28,23.776884]
[1735108290387,9.68089153,199.33,199.28,23.776884]
[1735108290671,9.68089153,199.32,199.28,23.776884]
[1735108292375,9.68089153,199.29,199.27,6.3699]
[1735108292675,9.68089153,199.28,199.22,7.8542]
[1735108292844,9.68089153,199.27,199.22,7.8542]
[1735108293286,9.68089153,199.28,199.22,7.8542]
[1735108293452,9.68089153,199.29,199.22,7.8542]
[1735108293642,9.68089153,199.29,199.22,18.28779575]
[1735108293845,9.68089153,199.29,199.22,17.53509153]
[1735108294043,7.5262,199.31,199.23,9.68089153]
[1735108294368,9.68089153,199.3,199.23,9.68089153]
[1735108294689,7.5244,199.35,199.23,10.43357697]
[1735108294993,9.68089153,199.32,199.25,9.68089153]
[1735108296669,9.68089153,199.3,199.23,10.43357697]
[1735108296874,9.68089153,199.27,199.22,7.8542]
[1735108297255,9.68089153,199.26,199.22,7.8542]
[1735108297682,9.68089153,199.25,199.22,7.8542]
[1735108298284,9.68089153,199.25,199.22,6.2437]
[1735108298454,9.68089153,199.25,199.22,5.7437]
[1735108299965,9.68089153,199.26,199.22,5.7437]
[1735108300170,9.68089153,199.28,199.22,5.7437]
[1735108302180,9.68089153,199.27,199.22,5.7437]
[1735108304077,9.68089153,199.25,199.22,5.7437]
[1735108304678,9.68089153,199.25,199.17,1.6105]
[1735108304679,9.68089153,199.24,199.17,1.6105]
[1735108304986,9.68089153,199.22,199.17,1.6105]
[1735108307067,53.77466612,199.32,199.17,1.6105]
[1735108307068,22.5778,199.31,199.17,1.6105]
[1735108307283,9.68089153,199.23,199.17,1.6105]
[1735108308279,17.20999153,199.23,199.17,1.6105]
[1735108308451,9.68089153,199.21,199.17,1.6105]
[1735108309183,9.68089153,199.2,199.16,6.4115]
[1735108309558,7.5291,199.23,199.16,6.4115]
[1735108309761,17.20999153,199.23,199.16,6.4115]
[1735108312665,9.68089153,199.23,199.16,6.4115]
[1735108315190,7.5279,199.26,199.16,16.09239153]
[1735108315373,9.68089153,199.24,199.17,9.68089153]
[1735108315568,7.5279,199.26,199.17,9.68089153]
[1735108315769,1.5934,199.38,199.22,6.1206]
[1735108315971,9.68089153,199.34,199.27,9.68089153]
[1735108316178,9.68089153,199.35,199.27,9.68089153]
[1735108316377,9.68089153,199.34,199.27,9.68089153]
[1735108316887,7.5236,199.37,199.28,9.68089153]
[1735108317067,9.68089153,199.35,199.28,9.68089153]
[1735108317267,9.68089153,199.35,199.28,10.43341155]
[1735108318290,15.0448,199.41,199.28,10.43341155]
[1735108318594,9.68089153,199.35,199.28,10.43341155]
[1735108318896,9.68089153,199.35,199.28,9.68089153]
[1735108319190,7.5218,199.42,199.32,9.68089153]
[1735108319399,9.68089153,199.4,199.33,6.1206]
[1735108319884,9.68089153,199.41,199.34,10.43319561]
[1735108320070,7.5206,199.46,199.34,10.43319561]
[1735108320273,7.5206,199.46,199.36,9.68089153]
[1735108320468,9.68089153,199.42,199.34,10.43319561]
[1735108320780,9.68089153,199.43,199.35,9.68089153]
[1735108321087,15.42312073,199.56,199.4,9.68089153]
[1735108321281,9.68089153,199.5,199.43,9.68089153]
[1735108322075,7.5175,199.54,199.39,6.1206]
[1735108322076,9.68089153,199.44,199.39,6.1206]
[1735108322277,15.11042286,199.43,199.39,6.1206]
[1735108322475,15.11042286,199.44,199.39,6.1206]
[1735108323696,15.11042286,199.43,199.39,6.1206]
[1735108323906,15.11042286,199.4,199.34,6.1206]
[1735108324273,15.11042286,199.38,199.34,6.1206]
[1735108324600,15.11042286,199.39,199.34,6.1206]
[1735108325165,15.11042286,199.41,199.34,6.1206]
[1735108325368,15.11042286,199.42,199.35,15.11042286]
[1735108326097,15.11042286,199.42,199.34,21.98327456]
[1735108326603,15.11042286,199.41,199.34,21.98327456]
[1735108326775,15.11042286,199.41,199.34,21.23102286]
[1735108327887,15.11042286,199.4,199.34,6.1206]
[1735108329596,20.0,199.43,199.37,15.11042286]
[1735108329919,15.11042286,199.44,199.37,15.11042286]
[1735108330194,7.5203,199.46,199.35,0.75215858]
[1735108330195,15.11042286,199.42,199.35,0.75215858]
[1735108330402,15.11042286,199.42,199.34,143.73102286]
[1735108330587,15.11042286,199.42,199.35,15.11042286]
[1735108330789,15.11042286,199.43,199.36,15.11042286]
[1735108332505,15.11042286,199.44,199.36,15.11042286]
[1735108332680,15.11042286,199.42,199.34,143.73102286]
[1735108334323,15.11042286,199.44,199.36,15.11042286]
[1735108334484,15.11042286,199.44,199.37,15.11042286]
[1735108334802,15.11042286,199.45,199.38,15.11042286]
[1735108334988,7.5194,199.49,199.4,15.11042286]
[1735108335322,15.11042286,199.49,199.42,8.0132]
[1735108335524,15.11042286,199.49,199.42,23.12362286]
[1735108335881,15.11042286,199.5,199.43,15.86240396]
[1735108337181,15.11042286,199.5,199.43,138.36240396]
[1735108337413,15.11042286,199.52,199.45,15.11042286]
[1735108337620,15.11042286,199.53,199.45,15.86223984]
[1735108338192,15.11042286,199.51,199.43,15.11042286]
[1735108338379,15.11042286,199.49,199.42,8.0132]
[1735108339417,15.11042286,199.56,199.42,23.12362286]
[1735108339418,15.11042286,199.5,199.42,23.12362286]
[1735108339982,7.5181,199.52,199.42,23.12362286]
[1735108339983,15.11042286,199.48,199.42,8.0132]
[1735108340183,15.11042286,199.47,199.42,8.0132]
[1735108341785,15.11042286,199.49,199.42,8.0132]
[1735108341992,15.11042286,199.49,199.42,23.12362286]
[1735108342193,15.11042286,199.49,199.42,8.0132]
[1735108342395,15.11042286,199.47,199.42,8.0132]
[1735108343307,15.11042286,199.45,199.42,8.0132]
[1735108346207,9.6698182,199.45,199.42,8.0132]
[1735108346404,9.6698182,199.45,199.42,6.4466]
[1735108346794,9.6698182,199.44,199.37,17.8220182]
[1735108347191,9.6698182,199.45,199.37,17.8220182]
[1735108347512,9.6698182,199.45,199.37,18.57418777]
[1735108348093,9.6698182,199.45,199.38,23.776884]
[1735108349501,7.52,199.47,199.37,8.90436957]
[1735108349502,9.6698182,199.43,199.37,8.90436957]
[1735108349693,9.6698182,199.38,199.32,130.1884]
[1735108349893,9.6698182,199.37,199.32,7.6884]
[1735108350097,20.0,199.41,199.32,17.3582182]
[1735108350434,9.6698182,199.41,199.33,10.42208683]
[1735108350632,9.6698182,199.38,199.32,7.6884]
[1735108350804,9.6698182,199.37,199.32,7.6884]
[1735108352120,9.6698182,199.37,199.33,23.776884]
[1735108352299,7.5226,199.4,199.33,23.776884]
[1735108352300,15.12160547,199.38,199.33,23.776884]
[1735108352617,35.12160547,199.44,199.33,23.776884]
[1735108352618,15.12160547,199.39,199.33,23.776884]
[1735108352826,15.12160547,199.41,199.34,15.12160547]
[1735108353121,15.12160547,199.41,199.35,23.776884]
[1735108354329,15.12160547,199.41,199.34,23.776884]
[1735108354728,15.12160547,199.41,199.34,38.89848947]
[1735108356929,15.12160547,199.4,199.34,23.776884]
[1735108357334,15.12160547,199.41,199.34,38.89848947]
[1735108359321,15.12160547,199.4,199.34,23.776884]
[1735108360253,15.12160547,199.41,199.34,23.776884]
[1735108360950,15.12160547,199.4,199.34,23.776884]
[1735108361321,15.12160547,199.39,199.34,23.776884]
[1735108362242,15.12160547,199.41,199.34,23.776884]
[1735108362424,35.12160547,199.43,199.36,38.89848947]
[1735108362630,15.12160547,199.45,199.38,38.89848947]
[1735108363032,15.12160547,199.47,199.4,6.5984]
[1735108363241,15.12160547,199.5,199.44,23.776884]
[1735108363548,15.12160547,199.49,199.44,23.776884]
[1735108363727,15.12160547,199.49,199.43,23.776884]
[1735108364145,15.12160547,199.49,199.41,139.18450547]
[1735108364330,15.12160547,199.49,199.42,23.776884]
[1735108364529,15.12160547,199.47,199.42,23.776884]
[1735108368869,15.12160547,199.46,199.42,23.776884]
[1735108369042,15.12160547,199.44,199.41,1.5629]
[1735108369359,15.12160547,199.43,199.41,1.5629]
[1735108369655,15.12160547,199.42,199.36,1.5629]
[1735108369853,15.12160547,199.41,199.36,1.5629]
[1735108370540,15.12160547,199.42,199.36,1.5629]
[1735108371656,15.12160547,199.42,199.37,23.776884]
[1735108378165,9.67354324,199.41,199.37,23.776884]
[1735108380558,9.67354324,199.43,199.37,23.776884]
[1735108380753,7.5191,199.49,199.39,33.45042724]
[1735108380941,9.67354324,199.46,199.39,33.45042724]
[1735108381659,9.67354324,199.46,199.39,23.776884]
[1735108381871,9.67354324,199.44,199.38,23.776884]
[1735108382156,7.5201,199.47,199.38,34.2026596]
[1735108382337,9.67354324,199.46,199.39,9.67354324]
[1735108382537,9.67354324,199.46,199.4,23.776884]
[1735108383043,7.5188,199.5,199.42,23.776884]
[1735108383264,9.67354324,199.47,199.42,23.776884]
[1735108383763,20.0,199.47,199.42,23.776884]
[1735108383955,29.67354324,199.47,199.42,23.776884]
[1735108385060,9.67354324,199.48,199.42,23.776884]
[1735108385260,9.67354324,199.49,199.42,33.45042724]
[1735108386663,9.67354324,199.49,199.42,34.20240132]
[1735108386837,38.69417296,199.56,199.42,34.20240132]
[1735108386838,9.67354324,199.47,199.42,23.776884]
[1735108387034,9.67354324,199.46,199.41,6.5984]
[1735108387260,9.67354324,199.43,199.41,6.5984]
[1735108387467,9.67354324,199.42,199.41,6.5984]
[1735108387644,20.0,199.48,199.41,6.5984]
[1735108387839,9.67354324,199.43,199.41,6.5984]
[1735108388039,9.67354324,199.42,199.41,6.5984]
[1735108389663,9.67354324,199.42,199.36,8.1613]
[1735108389966,9.67354324,199.42,199.37,23.776884]
[1735108390165,15.11461918,199.42,199.37,23.776884]
[1735108390474,20.0,199.48,199.36,6.5984]
[1735108390475,15.11461918,199.38,199.36,6.5984]
[1735108391140,15.11461918,199.38,199.31,22.74621918]
[1735108391688,15.11461918,199.38,199.32,23.776884]
[1735108392774,15.11461918,199.39,199.32,38.89150318]
[1735108393012,15.11461918,199.4,199.33,15.86696439]
[1735108393268,15.11461918,199.4,199.34,23.776884]
[1735108394569,15.11461918,199.39,199.33,23.776884]
[1735108394747,15.11461918,199.38,199.33,23.776884]
[1735108394948,15.11461918,199.39,199.32,38.89150318]
[1735108395248,15.11461918,199.4,199.34,23.776884]
[1735108395758,15.11461918,199.39,199.33,23.776884]
[1735108395975,15.11461918,199.38,199.33,23.776884]
[1735108396179,15.11461918,199.38,199.32,23.776884]
[1735108398506,15.11461918,199.39,199.32,38.89150318]
[1735108399070,15.11461918,199.4,199.34,23.776884]
[1735108401714,15.11461918,199.39,199.34,23.776884]
[1735108402005,15.11461918,199.39,199.33,23.776884]
[1735108409521,15.11461918,199.39,199.32,23.776884]
[1735108410183,15.11461918,199.39,199.32,38.89150318]
[1735108410897,15.11461918,199.41,199.34,23.776884]
[1735108411287,15.11461918,199.39,199.32,23.776884]
[1735108411488,15.11461918,199.37,199.31,7.6316]
[1735108412207,9.67815296,199.37,199.31,7.6316]
[1735108414935,9.67815296,199.35,199.31,7.6316]
[1735108415590,9.67815296,199.33,199.27,6.2289]
[1735108415934,9.67815296,199.32,199.27,30.005784]
[1735108416490,9.67815296,199.34,199.27,39.68393696]
[1735108418430,9.67815296,199.28,199.22,128.7289]
[1735108418593,9.67815296,199.27,199.22,6.2289]
[1735108419001,9.67815296,199.28,199.22,6.2289]
[1735108421843,9.67815296,199.27,199.22,6.2289]
[1735108422049,9.67815296,199.26,199.22,6.2289]
[1735108423409,9.67815296,199.29,199.23,23.776884]
[1735108423811,9.67815296,199.3,199.23,23.776884]
[1735108424920,9.67815296,199.3,199.23,33.45503696]
[1735108425243,9.67815296,199.3,199.23,23.776884]
[1735108426228,9.67815296,199.29,199.23,23.776884]
[1735108427449,9.67815296,199.26,199.22,6.2289]
[1735108427747,19.38411299,199.37,199.22,6.2289]
[1735108427748,9.67815296,199.28,199.22,6.2289]
[1735108427926,9.67815296,199.3,199.23,132.17815296]
[1735108428131,9.67815296,199.31,199.24,10.43081682]
[1735108428344,9.67815296,199.29,199.22,138.40705296]
[1735108428844,9.67815296,199.27,199.22,6.2289]
[1735108429143,9.67815296,199.26,199.22,6.2289]
[1735108429338,9.67815296,199.25,199.22,6.2289]
[1735108430047,9.67815296,199.24,199.18,122.5]
[1735108431457,9.67815296,199.23,199.18,122.5]
[1735108432223,9.67815296,199.23,199.17,6.0896]
[1735108433348,9.67815296,199.24,199.17,16.52067701]
[1735108433643,9.67815296,199.24,199.18,23.776884]
[1735108433842,9.67815296,199.25,199.18,33.45503696]
[1735108434044,9.67815296,199.26,199.2,23.776884]
[1735108434547,9.67815296,199.25,199.19,23.776884]
[1735108435141,9.67815296,199.26,199.19,34.20789047]
[1735108435449,17.20555296,199.27,199.2,9.67815296]
[1735108435853,19.35630596,199.28,199.2,9.67815296]
[1735108436151,1.5993,199.34,199.22,155.95503696]
[1735108436330,9.67815296,199.3,199.23,9.67815296]
[1735108436529,29.03445896,199.3,199.23,10.43082133]
[1735108436730,9.67815296,199.29,199.22,155.95503696]
[1735108437655,9.67815296,199.29,199.22,146.276884]
[1735108439550,9.67815296,199.28,199.22,146.276884]
[1735108440454,9.67815296,199.26,199.19,132.17815296]
[1735108440639,9.67815296,199.26,199.19,122.5]
[1735108440835,9.67815296,199.27,199.2,0.75281856]
[1735108441037,9.67815296,199.29,199.21,132.17815296]
[1735108441259,29.03445896,199.3,199.22,10.43084705]
[1735108441551,9.67815296,199.34,199.26,9.67815296]
[1735108441759,17.20265296,199.35,199.27,10.43071693]
[1735108441927,7.5245,199.35,199.28,33.45503696]
[1735108442127,9.67815296,199.34,199.28,23.776884]
[1735108443263,9.67815296,199.33,199.28,23.776884]
[1735108443449,9.67815296,199.3,199.25,6.3497]
[1735108444963,9.67815296,199.31,199.25,6.3497]
[1735108445150,9.67815296,199.3,199.25,6.3497]
[1735108445860,7.5245,199.35,199.25,6.3497]
[1735108446049,20.0,199.32,199.26,33.45503696]
[1735108446250,9.67815296,199.33,199.26,33.45503696]
[1735108446450,9.67815296,199.34,199.27,0.75254283]
[1735108446655,9.67815296,199.33,199.26,23.776884]
[1735108446967,9.67815296,199.32,199.26,23.776884]
[1735108447541,9.67815296,199.31,199.25,6.3497]
[1735108447739,9.67815296,199.3,199.25,6.3497]
[1735108448450,9.67815296,199.29,199.25,6.3497]
[1735108449865,9.67815296,199.31,199.25,6.3497]
[1735108450086,9.67815296,199.32,199.26,23.776884]
[1735108450570,9.67815296,199.33,199.28,23.776884]